Workbook

Sheet FACTUUR INVOER
H1: FACTUUR
F3: FACTUURNR. | H3: 202001-011
F5: FACTUURDATUM | H5: 2020-01-31
E11: KEBERS BELGIE NV
A20: Werf Bayer
A22: Omschrijving | B22: Uren | C22: Euro/uur | D22: Procent | E22: BTW | F22: BTW | G22: BTW | H22: BTW
D23: Toeslag | E23: Exclusief | F23: Tarief | G23: Bedrag | H23: Inclusief
A24: Gepresteerde gewone uren | B24: 10 | C24: 35 | E24: =SUM(($B24*$C24)*(1+$D24)) -> 350 | F24: 0.21 | G24: =SUM($E24*$F24) -> 73.5 | H24: =IF($F24="","",$E24+$G24) -> 423.5
B25: 15 | C25: 35 | E25: 525 | F25: 0.19 | G25: 99.75 | H25: 624.75
B26: 20 | C26: 35 | E26: 700 | F26: 0.06 | G26: 42 | H26: 742
E27: 0 | G27: 0
E28: 0 | G28: 0
E29: 0 | G29: 0
E30: 0 | G30: 0
E31: 0 | G31: 0
E32: 0 | G32: 0
E33: 0 | G33: 0
E34: 0 | G34: 0
E35: 0 | G35: 0
E36: 0 | G36: 0
E37: 0 | G37: 0
E38: 0 | G38: 0
E39: 0 | G39: 0
E40: 0 | G40: 0
E41: 0 | G41: 0
E42: 0 | G42: 0
E43: 0 | G43: 0
E44: 0 | G44: 0
E45: 0 | G45: 0
E46: =SUM($E$24:$E$45) -> 1575 | G46: =SUM($G$24:$G$45) -> 215.25
A47: TOTAAL TE BETALEN | H47: =SUM($H$24:$H$45) -> 1790.25
E49: BTW aan | F49: =IFERROR(VLOOKUP(21%,$F$24:$F$45,1,0),"") -> 0.21 | G49: =(SUMIF($F$24:$F$45,0.21,$G$24:$G$45)) -> 73.5
F50: =IFERROR(VLOOKUP(19%,$F$24:$F$45,1,0),"") -> 0.19 | G50: =(SUMIF($F$24:$F$45,0.19,$G$24:$G$45)) -> 99.75
F51: =IFERROR(VLOOKUP(6%,$F$24:$F$45,1,0),"") -> 0.06 | G51: =(SUMIF($F$24:$F$45,0.06,$G$24:$G$45)) -> 42
E2424: =SUM(($B2436*$C2436)*(1+$D2436)) -> 0
E2425: 0
E2426: 0
E2427: 0
E2428: 0
E2429: 0
E2430: 0
E2431: 0
E2432: 0
E2433: 0
E2434: 0
E2435: 0
E2436: 0
E2437: 0
E2438: 0
E2439: 0
E2440: 0
E2441: 0
E2442: 0
E2443: 0
E2444: 0
E2445: 0

Sheet FACTUURLIJST
A1: Nr | C1: Vervaldatum | D1: Overschreden | E1: Dagen te | G1: Datum klant | H1: Bankuitrekselnr | I1: Status | K1: Nr fact/crednt | L1: Datum fact/crednt | M1: Naam dokument | N1: Omschrijving | Q1: Exclusief btw | R1: Creditnota | T1: Btw tarief(a) | U1: Btw bedrag(a) | V1: Creditnota(a) | X1: Btw tarief(b) | Y1: Btw bedrag(b) | Z1: Creditnota(b) | AB1: Btw tarief(c) | AC1: Btw bedrag(c) | AD1: Creditnota(c) | AG1: Totaal | AH1: Creditnota(d) | AJ1: Firmanaam | AK1: Dienst boekhouden | AL1: Straat + nr | AM1: Postcode + Gemeente | AN1: Land | AO1: BTW nummer | AP1: Mnd
D2: bedrag | E2: laat betaald | G2: betaald fact | Q2: =SUM(Q4-R4) -> 17325 | U2: =SUM(U4-V4) -> 808.5 | Y2: =SUM(Y4-Z4) -> 1097.25 | AC2: =SUM(AC4-AD4) -> 462 | AG2: =SUM(AG4-AH4) -> 19692.75
Q4: =SUM($Q$7:$Q$1000) -> 17325 | R4: =SUM($R$7:$R$1000) -> 0 | U4: =SUM($U$7:$U$1000) -> 808.5 | V4: =SUM($V$7:$V$1000) -> 0 | Y4: =SUM($Y$7:$Y$1000) -> 1097.25 | Z4: =SUM($Z$7:$Z$1000) -> 0 | AC4: =SUM($AC$7:$AC$1000) -> 462 | AD4: =SUM($AD$7:$AD$1000) -> 0 | AG4: =SUM($AG$7:$AG$1000) -> 19692.75 | AH4: =SUM($AH$7:$AH$1000) -> 0
A6: 0 | K6: Factuur nr
A7: =IF($K7="","",1+$A6) -> 1 | C7: 2020-03-01 | D7: =IF(OR(G7="")*TODAY()>=C7,AG7,"") ->  | E7: =IF(AND(G7="")*TODAY()>=C7,DAYS360(C7,TODAY()+1),IF(G7>=C7,DAYS360(C7,G7+1),"")) ->  | K7: 202001-001 | L7: 2020-01-31 | M7: FACTUUR | N7: Werf Bayer | Q7: 1575 | T7: 0.21 | U7: 73.5 | X7: 0.19 | Y7: 99.75 | AB7: 0.06 | AC7: 42 | AG7: 1790.25 | AJ7: KEBERS BELGIE NV | AP7: =MONTH(L7) -> 1
A8: 2 | C8: 2020-03-01 | K8: 202001-002 | L8: 2020-01-31 | M8: FACTUUR | N8: Werf Bayer | Q8: 1575 | T8: 0.21 | U8: 73.5 | X8: 0.19 | Y8: 99.75 | AB8: 0.06 | AC8: 42 | AG8: 1790.25 | AJ8: KEBERS BELGIE NV | AP8: 1
A9: 3 | C9: 2020-03-01 | K9: 202001-003 | L9: 2020-01-31 | M9: FACTUUR | N9: Werf Bayer | Q9: 1575 | T9: 0.21 | U9: 73.5 | X9: 0.19 | Y9: 99.75 | AB9: 0.06 | AC9: 42 | AG9: 1790.25 | AJ9: KEBERS BELGIE NV | AP9: 1
A10: 4 | C10: 2020-03-01 | K10: 202001-004 | L10: 2020-01-31 | M10: FACTUUR | N10: Werf Bayer | Q10: 1575 | T10: 0.21 | U10: 73.5 | X10: 0.19 | Y10: 99.75 | AB10: 0.06 | AC10: 42 | AG10: 1790.25 | AJ10: KEBERS BELGIE NV | AP10: 1
A11: 5 | C11: 2020-03-01 | K11: 202001-005 | L11: 2020-01-31 | M11: FACTUUR | N11: Werf Bayer | Q11: 1575 | T11: 0.21 | U11: 73.5 | X11: 0.19 | Y11: 99.75 | AB11: 0.06 | AC11: 42 | AG11: 1790.25 | AJ11: KEBERS BELGIE NV | AP11: 1
A12: 6 | C12: 2020-03-01 | K12: 202001-006 | L12: 2020-01-31 | M12: FACTUUR | N12: Werf Bayer | Q12: 1575 | T12: 0.21 | U12: 73.5 | X12: 0.19 | Y12: 99.75 | AB12: 0.06 | AC12: 42 | AG12: 1790.25 | AJ12: KEBERS BELGIE NV | AP12: 1
A13: 7 | C13: 2020-03-01 | K13: 202001-007 | L13: 2020-01-31 | M13: FACTUUR | N13: Werf Bayer | Q13: 1575 | T13: 0.21 | U13: 73.5 | X13: 0.19 | Y13: 99.75 | AB13: 0.06 | AC13: 42 | AG13: 1790.25 | AJ13: KEBERS BELGIE NV | AP13: 1
A14: 8 | C14: 2020-03-01 | K14: 202001-008 | L14: 2020-01-31 | M14: FACTUUR | N14: Werf Bayer | Q14: 1575 | T14: 0.21 | U14: 73.5 | X14: 0.19 | Y14: 99.75 | AB14: 0.06 | AC14: 42 | AG14: 1790.25 | AJ14: KEBERS BELGIE NV | AP14: 1
A15: 9 | C15: 2020-03-01 | K15: 202001-009 | L15: 2020-01-31 | M15: FACTUUR | N15: Werf Bayer | Q15: 1575 | T15: 0.21 | U15: 73.5 | X15: 0.19 | Y15: 99.75 | AB15: 0.06 | AC15: 42 | AG15: 1790.25 | AJ15: KEBERS BELGIE NV | AP15: 1
A16: 10 | C16: 2020-03-01 | K16: 202001-010 | L16: 2020-01-31 | M16: FACTUUR | N16: Werf Bayer | Q16: 1575 | T16: 0.21 | U16: 73.5 | X16: 0.19 | Y16: 99.75 | AB16: 0.06 | AC16: 42 | AG16: 1790.25 | AJ16: KEBERS BELGIE NV | AP16: 1
A17: =IF($K17="","",1+$A16) -> 11 | C17: 2020-03-01 | D17: =IF(OR(G17="")*TODAY()>=C17,AG17,"") ->  | E17: =IF(AND(G17="")*TODAY()>=C17,DAYS360(C17,TODAY()+1),IF(G17>=C17,DAYS360(C17,G17+1),"")) ->  | K17: 202001-011 | L17: 2020-01-31 | M17: FACTUUR | N17: Werf Bayer | Q17: 1575 | T17: 0.21 | U17: 73.5 | X17: 0.19 | Y17: 99.75 | AB17: 0.06 | AC17: 42 | AG17: 1790.25 | AJ17: KEBERS BELGIE NV | AP17: =MONTH(L17) -> 1

Sheet Factuur (hidden)
A1: A.V.D. | H1: FACTUUR
A2: HOOGSTRAAT 170
A3: BE-9100 SINT-NIKLAAS | F3: FACTUURNR. | H3: 201902-074
A4: BELGIE
F5: FACTUURDATUM | H5: 2019-02-10
A6: GSM 0477 583 713
A7: Btw-nr. BE 0456 777 888
A8: ANDRE.VAN.DRIESSE@TELENET.BE
E11: VAN DEN BORRE
E12: DIENST BOEKHOUDEN
E13: KALKSTRAAT 78
E14: 4620 SINT-NIKLAAS
E15: BELGIE
E16: BE 3456 987 123
A20: Werf Lanxess Bayer nr 190 januari 2019
A22: Omschrijving | B22: Uren | C22: Euro/uur | D22: Procent | E22: BTW | F22: BTW | G22: BTW | H22: BTW
D23: Toeslag | E23: Exclusief | F23: Tarief | G23: Bedrag | H23: Inclusief
E24: 0 | G24: 0 | H24: =IF(F24="","",E24+G24) -> 
E25: 0 | G25: 0 | H25: =IF(F25="","",E25+G25) -> 
E26: 0 | G26: 0 | H26: =IF(F26="","",E26+G26) -> 
E27: 0 | G27: 0 | H27: =IF(F27="","",E27+G27) -> 
A28: Gepresteerde gewone uren | B28: 140.5 | C28: 32 | E28: 4496 | F28: 0.21 | G28: 944.16 | H28: =IF($F$28="","",$E$28+$G$28) -> 5440.16
A29: overuren (8) + 1 ste uur (geen toeslag) | B29: 4 | C29: 32 | E29: 128 | F29: 0.21 | G29: 26.88 | H29: =IF(F29="","",E29+G29) -> 154.88
A30: overuren (8) + vanaf 2de uur | B30: 3 | C30: 32 | D30: 0.5 | E30: 144 | F30: 0.21 | G30: 30.24 | H30: 174.24
B31: 2 | C31: 5 | D31: 0.5 | E31: 15 | F31: 0.21 | G31: 3.15 | H31: 18.15
A32: Zaterdagen | B32: 8 | C32: 32 | D32: 0.5 | E32: 384 | F32: 0.19 | G32: 72.96 | H32: 456.96
A33: Zondagen | B33: 8 | C33: 32 | D33: 0.5 | E33: 384 | F33: 0.21 | G33: 80.64 | H33: 464.64
E34: 0 | G34: 0
A35: Feestdagen | B35: 8 | C35: 32 | D35: 1 | E35: 512 | F35: 0.06 | G35: 30.72 | H35: 542.72
E36: 0 | G36: 0
A37: Gepresteerd ploegwerk | E37: 0 | G37: 0
A38: Gepresteerd nachtwerk | E38: 0 | G38: 0
E39: 0 | G39: 0
E40: 0 | G40: 0
E41: 0 | G41: 0
E42: 0 | G42: 0
E43: 0 | G43: 0
E44: 0 | G44: 0
E45: 0 | G45: 0
E46: =SUM(E24:E45) -> 6063 | G46: =SUM(G24:G45) -> 1188.75
A47: TOTAAL TE BETALEN | H47: =SUM($H$24:$H$45) -> 7251.75
E49: BTW aan | F49: =IFERROR(VLOOKUP(21%,$F$24:$F$45,1,0),"") -> 0.21 | G49: =(SUMIF($F$24:$F$45,0.21,$G$24:$G$45)) -> 1085.07
A50: Recordbank IBAN BE80 9514 7536 8526 | F50: =IFERROR(VLOOKUP(19%,$F$24:$F$45,1,0),"") -> 0.19 | G50: =(SUMIF($F$24:$F$45,0.19,$G$24:$G$45)) -> 72.96
F51: =IFERROR(VLOOKUP(6%,$F$24:$F$45,1,0),"") -> 0.06 | G51: =(SUMIF($F$24:$F$45,0.06,$G$24:$G$45)) -> 30.72
A52: U wordt verzocht het vermelde bedrag binnen de 30 dagen over te maken
A53: op het onderstaande rekeningnummer met vermelding van factuurnummer
